fUSD/lending_fUSD_20240129
["ID","MTS","AMOUNT","RATE_DAILY","PERIOD"]
[312948056,1706494238544,-1860.43939461,0.00022998,2]
[312948057,1706494238553,-276.46473777,0.00022999,2]
[312948058,1706494238563,-473.16198387,0.00022999,2]
[312948059,1706494238572,-500.0,0.00022999,2]
[312948060,1706494238581,-418.828782,0.00022999,2]
[312948061,1706494238590,-1584332.95734805,0.00023,2]
[312948062,1706494238607,-158181.53304488,0.00023,2]
[312948063,1706494238618,-747617.94217001,0.00023,2]
[312948064,1706494238633,-3954.363667,0.00023,2]
[312948073,1706494241152,-997.77573627,0.00022699,2]
[312948078,1706494243275,-496.1811326,0.0002247,2]
[312948079,1706494243284,-23.96190557,0.00022699,2]
[312948080,1706494243296,-2130.34773654,0.00022699,2]
[312948081,1706494243330,-42079.69559321,0.00022699,2]
[312948082,1706494243443,-519.98987013,0.00022699,2]
[312948084,1706494243893,-0.90343619,0.00022699,2]
[312948085,1706494243908,-325.39435214,0.00022699,2]
[312948086,1706494243920,-469.32528734,0.00022699,2]
[312948087,1706494243932,-617.59544669,0.00022699,2]
[312948088,1706494243944,-339.26139319,0.00022699,2]
[312948089,1706494243959,-736.45,0.00022699,2]
[312948090,1706494243970,-627.52602902,0.00022699,2]
[312948098,1706494245869,-1131.77321371,0.00022699,2]
[312948099,1706494245879,-1373.34846857,0.00023,2]
[312948100,1706494245926,-457.57599352,0.00023,2]
[312948101,1706494245938,-658.85282172,0.00023,2]
[312948102,1706494245954,-283.7162531,0.00023,2]
[312948103,1706494245987,-280.21103288,0.00023,2]
[312948104,1706494246044,-16802.34672906,0.00023,2]
[312948105,1706494246057,-479.96318635,0.00023,2]
[312948106,1706494246071,-9396.36664746,0.00023,2]
[312948107,1706494246102,-9301.22189225,0.00023,2]
[312948108,1706494246158,-4639.4,0.00023,2]
[312948109,1706494246170,-859.39536,0.00023,2]
[312948110,1706494246182,-587.2050527,0.00023,2]
[312948111,1706494246215,-548.2171008,0.00023,2]
[312948112,1706494246227,-734.85535984,0.00023,2]
[312948117,1706494338774,394.0,0.0003025,100]
[312948118,1706494826183,164.69,0.00020787,2]
[312948119,1706495004340,200.0,0.00027,7]
[312948120,1706495143394,200.0,0.0002,3]
[312948121,1706495274068,164.69,0.00019743,2]
[312948122,1706495347104,-200.0,0.00021663,2]
[312948123,1706495347124,-286.01482725,0.00021664,2]
[312948124,1706495347145,-164.22,0.00021665,2]
[312948125,1706495347165,-2443.14157275,0.00021917,2]
[312948132,1706495432057,-200.0,0.00021917,2]
[312948133,1706495432067,-250.0,0.00021918,2]
[312948134,1706495432077,-286.87373382,0.00021999,2]
[312948135,1706495432086,-152.89090886,0.00022,2]
[312948136,1706495432096,-182.34484138,0.00022422,2]
[312948137,1706495432106,-150.0,0.00022446,2]
[312948138,1706495432115,-22299.98277378,0.00022447,2]
[312948139,1706495432127,-10160.27346188,0.00022447,2]
[312948140,1706495432139,-917.82255189,0.00022447,2]
[312948141,1706495432150,-667.42118425,0.00022447,2]
[312948142,1706495432166,-3244.73487109,0.00022447,2]
[312948143,1706495432185,-12709.76515711,0.00022447,2]
[312948144,1706495432194,-182.34484129,0.00022447,2]
[312948145,1706495432204,-182.34484129,0.00022472,2]
[312948146,1706495432213,-182.34484129,0.00022497,2]
[312948147,1706495432223,-150.99,0.00022497,2]
[312948148,1706495432233,-757.41,0.00022522,2]
[312948149,1706495432243,-182.34484129,0.00022523,2]
[312948150,1706495432253,-4495.42,0.00022523,2]
[312948151,1706495432263,-182.34484129,0.00022548,2]
[312948152,1706495432272,-1000.0,0.00022567,2]
[312948153,1706495432293,-182.34484129,0.00022573,2]
[312948154,1706495432302,-150.0,0.00022587,2]
[312948155,1706495432312,-182.34484129,0.00022598,2]
[312948156,1706495432321,-182.34484129,0.00022623,2]
[312948157,1706495432331,-182.34484129,0.00022648,2]
[312948158,1706495432340,-150.0,0.00022654,2]
[312948159,1706495432349,-1000.0,0.00022659,2]
[312948160,1706495432360,-182.34484129,0.00022674,2]
[312948161,1706495432369,-182.34484129,0.00022699,2]
[312948162,1706495432379,-2353.4136,0.00022699,2]
[312948163,1706495432388,-2748.6095,0.00022699,2]
[312948164,1706495432398,-2500.0,0.00022699,2]
[312948165,1706495432407,-15872.83528256,0.00022699,2]
[312948166,1706495432417,-434.98,0.00022716,2]
[312948167,1706495432426,-499.99,0.00022716,2]
[312948168,1706495432436,-182.34484129,0.00022724,2]
[312948169,1706495432445,-182.34484129,0.00022749,2]
[312948170,1706495432455,-182.34484129,0.00022774,2]
[312948171,1706495432464,-3309.44,0.00022777,2]
[312948172,1706495432474,-1421.45568983,0.00022797,2]
[312948173,1706495432483,-405.5019,0.00022798,2]
[312948174,1706495432493,-1734.0064,0.00022798,2]
[312948175,1706495432503,-1037.687,0.00022798,2]
[312948176,1706495432514,-52235.32767253,0.00022798,2]
[312948177,1706495432523,-5000.0,0.00022799,2]
[312948178,1706495432533,-196.34583762,0.00022799,2]
[312948179,1706495432543,-3938.87854581,0.00022799,2]
[312948180,1706495432552,-52297.65,0.00022799,2]
[312948181,1706495432562,-182.34484129,0.00022799,2]
[312948182,1706495432571,-1702.03776824,0.000228,2]
[312948183,1706495432580,-467.98491576,0.000228,2]
[312948184,1706495432591,-182.34484129,0.00022825,2]
[312948185,1706495432601,-182.34484129,0.0002285,2]
[312948186,1706495432612,-182.34484129,0.00022875,2]
[312948187,1706495432621,-72500.5361636,0.00022898,2]
[312948188,1706495432644,-391.73008624,0.00022898,2]
[312948189,1706495432656,-528.87484806,0.00022898,2]
[312948190,1706495432690,-19300.21782847,0.00022898,2]
[312948197,1706495438335,-966612.53180218,0.00022898,2]
[312948198,1706495438345,-245000.0,0.00022899,2]
[312948199,1706495438355,-1702.03776824,0.00022899,2]
[312948200,1706495438365,-90638.1819,0.000229,2]
[312948201,1706495438375,-500.0,0.000229,2]
[312948202,1706495438384,-1000.0,0.000229,2]
[312948203,1706495438393,-39919.4283,0.000229,2]
[312948204,1706495438402,-78814.1648,0.000229,2]
[312948205,1706495438411,-129656.51217511,0.000229,2]
[312948206,1706495438420,-159.7018021,0.000229,2]
[312948207,1706495438430,-182.34484129,0.000229,2]
[312948208,1706495438439,-852.29078268,0.00022998,2]
[312948210,1706495438448,-417.59722976,0.00022999,2]
[312948212,1706495438458,-28878.16594669,0.00023,2]
[312948214,1706495438469,-563030.60962935,0.00023,2]
[312948241,1706495440648,-2244.82481454,0.00023,2]
[312948242,1706495440703,-1057.00894516,0.00023,2]
[312948243,1706495440866,-90499.31960809,0.00023,2]
[312948244,1706495440875,-378265.87391713,0.00023,2]
[312948247,1706495443087,-489.78524514,0.00023,2]
[312948260,1706495446154,-652.9326512,0.00023,2]
[312948261,1706495446170,-757.60382678,0.00023,2]
[312948262,1706495446369,-1966.88086733,0.00023,2]
[312948265,1706495562056,263.0,0.00023,6]
[312948266,1706495841288,164.69,0.00021037,2]
[312948268,1706496317984,164.69,0.00020457,2]
[312948287,1706496632178,-164.22,0.00022399,2]
[312948288,1706496632188,-1000.0,0.00022432,2]
[312948289,1706496632197,-268.9978855,0.00022496,2]
[312948290,1706496632206,-150.0,0.00022496,2]
[312948293,1706496632216,-31062.64988998,0.00022497,2]
[312948294,1706496632225,-218.99727034,0.00022498,2]
[312948295,1706496632234,-150.24288353,0.00022596,2]
[312948296,1706496632243,-874.7987,0.00022598,2]
[312948297,1706496632252,-1000.0,0.00022598,2]
[312948298,1706496632262,-2500.0,0.00022598,2]
[312948299,1706496632271,-1168.09836636,0.00022598,2]
[312948300,1706496632280,-617.63483594,0.00022598,2]
[312948301,1706496632289,-499.99,0.00022599,2]
[312948302,1706496632299,-5000.0,0.00022599,2]
[312948303,1706496632308,-3569.4281232,0.00022599,2]
[312948304,1706496632320,-41.21054382,0.00022599,2]
[312948305,1706496632330,-261.55793263,0.00022688,2]
[312948306,1706496632338,-24.24439859,0.00022698,2]
[312948307,1706496632355,-353.62981947,0.00022698,2]
[312948308,1706496632366,-129.55078194,0.00022698,2]
[312948309,1706496632375,-1326.63358097,0.00022698,2]
[312948310,1706496632398,-411.68315571,0.00022698,2]
[312948311,1706496632409,-499.82864977,0.00022698,2]
[312948312,1706496632428,-177767.22250878,0.00022698,2]
[312948313,1706496632444,-394.61416969,0.00022698,2]
[312948314,1706496632509,-7600.81963993,0.00022698,2]
[312948319,1706496638268,-403124.79226729,0.00022698,2]
[312948320,1706496638278,-500.0,0.00022698,2]
[312948321,1706496638287,-210.0,0.00022698,2]
[312948322,1706496638297,-159195.81736206,0.00022698,2]
[312948323,1706496638376,-85804.18263794,0.00022698,2]
[312948324,1706496638386,-1000.0,0.00022698,2]
[312948325,1706496638398,-1000.0,0.00022698,2]
[312948326,1706496638408,-12695.17660509,0.00022698,2]
[312948327,1706496640755,-1430.18375976,0.00022698,2]
[312948328,1706496640863,-14089.96194122,0.00022698,2]
[312948329,1706496640976,-751.02933199,0.00022698,2]
[312948344,1706496643915,-297241.01316194,0.00022698,2]
[312948345,1706496643925,-35438.41894818,0.00022699,2]
[312948346,1706496644058,-26.71962269,0.00022699,2]
[312948350,1706496646510,-770.43149471,0.00022699,2]
[312948351,1706496646537,-290.92176094,0.00022699,2]
[312948352,1706496646593,-263.33400238,0.00022699,2]
[312948354,1706496823937,164.69,0.00021595,2]
[312948357,1706497273250,164.69,0.00021417,2]
[312948358,1706497325589,311.97223792,0.00027,30]
[312948359,1706497456570,1917.49607688,0.00021,2]
[312948360,1706497456593,688.49887697,0.00021,2]
[312948361,1706497456617,688.49887697,0.00021,2]
[312948362,1706497456641,58513.99463982,0.00021,2]
[312948364,1706497735027,164.69,0.00021498,2]
[312948365,1706497745094,-286.01482725,0.00021997,2]
[312948366,1706497745114,-300.0,0.00021997,2]
[312948367,1706497745134,-150.0,0.00021997,2]
[312948368,1706497745153,-2357.36487275,0.00021998,2]
[312948369,1706497831423,-150.0,0.00022,2]
[312948370,1706497831434,-8272.1738,0.00022398,2]
[312948371,1706497831443,-420.75350682,0.00022497,2]
[312948372,1706497831453,-3228.2853,0.00022498,2]
[312948373,1706497831462,-39938.543,0.00022498,2]
[312948374,1706497831471,-4144.4452602,0.00022498,2]
[312948375,1706497831487,-321.90484521,0.00022498,2]
[312948376,1706497831498,-562.4996314,0.00022498,2]
[312948377,1706497831640,-385.97346546,0.00022498,2]
[312948378,1706497831652,-252.7154311,0.00022498,2]
[312948382,1706497837417,-8468.5032,0.00022498,2]
[312948388,1706497837477,-1478.00002489,0.00022498,2]
[312948389,1706497837490,-84385.95814174,0.00022498,2]
[312948390,1706497837499,-782.5291,0.00022498,2]
[312948391,1706497837508,-1056.30575068,0.00022498,2]
[312948392,1706497837517,-154.19383368,0.00022548,2]
[312948393,1706497837527,-1000.0,0.00022598,2]
[312948394,1706497837536,-245000.0,0.00022598,2]
[312948395,1706497837545,-540.2857,0.00022598,2]
[312948396,1706497837555,-1000.0,0.00022598,2]
[312948397,1706497837565,-9722.97270042,0.00022698,2]
[312948398,1706497837574,-884.31913024,0.00022862,2]
[312948399,1706497837584,-162.45241373,0.00022896,2]
[312948400,1706497837593,-129656.51217511,0.000229,2]
[312948401,1706497837602,-3309.75211138,0.000229,2]
[312948402,1706497837611,-5000.0,0.000229,2]
[312948403,1706497837621,-248.54578896,0.000229,2]
[312948404,1706497837630,-159.7018021,0.000229,2]
[312948405,1706497837639,-246.79741454,0.000229,2]
[312948406,1706497837649,-2050.62106658,0.000229,2]
[312948407,1706497837658,-311.98994384,0.000229,2]
[312948408,1706497837667,-417.17681945,0.00022999,2]
[312948409,1706497837677,-178.97024133,0.00022999,2]
[312948410,1706497837687,-121454.2303795,0.00023,2]
[312948411,1706497837697,-2755057.17016364,0.00023,2]
[312948412,1706497837706,-77337.01844083,0.00023,2]
[312948413,1706497837717,-2861.16401675,0.00023,2]
[312948414,1706497837742,-12496.5938476,0.00023,2]
[312948415,1706497837759,-95454.19455307,0.00023,2]
[312948427,1706497842531,-7360.55807331,0.00023,2]
[312948428,1706497842692,-443.79,0.00023,2]
[312948429,1706497842704,-305.0,0.00023,2]
[312948430,1706497842716,-28359.85746577,0.00023,2]
[312948431,1706497842803,-312.88261459,0.00022999,2]
[312948432,1706497842813,-15873.03165706,0.00023,2]
[312948433,1706497842858,-469.30961175,0.000229,2]
[312948434,1706497842914,-1564.68750646,0.000229,2]
[312948435,1706497842923,-6728.20930649,0.00023,2]
[312948436,1706497842935,-321.1046262,0.00023,2]
[312948437,1706497842969,-251.97835253,0.00023,2]
[312948438,1706497880714,462.92039452,0.00022998,3]
[312948439,1706498240450,164.69,0.00020497,2]
[312948440,1706498744539,173.09,0.00021603,2]
[312948441,1706498746525,164.69,0.0001972,2]
[312948442,1706498798105,-179.42789905,0.00021761,2]
[312948443,1706498798126,-1011.56,0.00021762,2]
[312948444,1706498798145,-226.24764596,0.00021778,2]
[312948445,1706499014349,250.0,0.00021603,2]
[312948449,1706499031619,-155.0,0.00021777,2]
[312948450,1706499031628,-144.42368159,0.00021778,2]
[312948451,1706499031640,-474.01370317,0.00021778,2]
[312948452,1706499031651,-1155.31496928,0.00021778,2]
[312948453,1706499031660,-196.77214892,0.000218,2]
[312948454,1706499031674,-189.27,0.00021827,2]
[312948455,1706499031685,-7157.8573163,0.000219,2]
[312948456,1706499031694,-264.12,0.00021903,2]
[312948457,1706499031703,-200.0,0.00021918,2]
[312948458,1706499031712,-800.0,0.00021918,2]
[312948459,1706499031721,-250.0,0.00021918,2]
[312948460,1706499031730,-353.08,0.00022,2]
[312948461,1706499031740,-628.61757419,0.00022078,2]
[312948462,1706499031749,-499.99,0.00022078,2]
[312948463,1706499031759,-1000.0,0.00022297,2]
[312948464,1706499031768,-189.27,0.00022395,2]
[312948465,1706499031777,-27778.39163326,0.00022397,2]
[312948466,1706499031883,-2838.89453252,0.00022397,2]
[312948467,1706499031899,-3800.0,0.00022397,2]
[312948468,1706499031911,-335.3151408,0.00022397,2]
[312948469,1706499031923,-955.35774204,0.00022397,2]
[312948488,1706499037620,-280712.64854223,0.00022397,2]
[312948489,1706499037630,-12288.7949,0.00022398,2]
[312948490,1706499037639,-187.11,0.00022462,2]
[312948491,1706499037649,-500.0,0.00022498,2]
[312948492,1706499037658,-39938.543,0.00022498,2]
[312948493,1706499037667,-100000.0,0.00022498,2]
[312948494,1706499037679,-1000.0,0.00022498,2]
[312948495,1706499037690,-245000.0,0.00022498,2]
[312948496,1706499037699,-1418.0,0.00022671,2]
[312948497,1706499037708,-1000.0,0.00022685,2]
[312948498,1706499037718,-169.40558037,0.000228,2]
[312948499,1706499037727,-692.23045358,0.000228,2]
[312948500,1706499037736,-3033.93943545,0.00022805,2]
[312948501,1706499037746,-209.4184,0.000229,2]
[312948502,1706499037755,-129656.51217511,0.000229,2]
[312948503,1706499037765,-506863.61444946,0.000229,2]
[312948504,1706499037775,-5000.0,0.000229,2]
[312948505,1706499037785,-159.07261467,0.000229,2]
[312948506,1706499037794,-196.77214892,0.00022905,2]
[312948507,1706499037804,-2734.16142212,0.0002293,2]
[312948508,1706499037813,-2456.42927164,0.0002293,2]
[312948509,1706499037822,-189.27,0.00022964,2]
[312948510,1706499037831,-165.69719264,0.00022977,2]
[312948511,1706499037840,-365.13151804,0.00022998,2]
[312948512,1706499037850,-526.66706358,0.00022998,2]
[312948513,1706499037859,-320.84478501,0.00022998,2]
[312948514,1706499037869,-313.02571761,0.00022999,2]
[312948515,1706499037878,-179.51287346,0.00022999,2]
[312948516,1706499037887,-156.42778273,0.00022999,2]
[312948517,1706499037896,-155.77788216,0.00022999,2]
[312948518,1706499037905,-529.45380906,0.00022999,2]
[312948519,1706499037915,-234.66196094,0.00022999,2]
[312948520,1706499037925,-2412746.94478182,0.00023,2]
[312948521,1706499037995,-1015.1999988,0.00023,2]
[312948563,1706499042632,-308.0,0.00023,2]
[312948564,1706499042744,-1524.90027628,0.00023,2]
[312948565,1706499042757,-1013.4999999,0.00023,2]
[312948566,1706499042801,-728.16,0.00023,2]
[312948567,1706499042912,-207.9932959,0.00022977,2]
[312948568,1706499042921,-107.12942203,0.00023,2]
[312948569,1706499042933,-935.399985,0.00023,2]
[312948570,1706499042955,-1548.15,0.00023,2]
[312948571,1706499042982,-2296.08,0.00023,2]
[312948574,1706499044983,-574.36846157,0.00023,2]
[312948575,1706499044995,-2317.97534598,0.00023,2]
[312948576,1706499045007,-271.9103755,0.00023,2]
[312948577,1706499045019,-306.98500084,0.00023,2]
[312948578,1706499045030,-1076.55373498,0.00023,2]
[312948579,1706499045041,-1060.43747428,0.00023,2]
[312948580,1706499045056,-989.6313245,0.00023,2]
[312948581,1706499045068,-757.69748552,0.00023,2]
[312948582,1706499045079,-974.07283775,0.00023,2]
[312948583,1706499045096,-508.42967284,0.00023,2]
[312948591,1706499046731,-155.0,0.00022976,2]
[312948592,1706499046740,-1832.3392397,0.00023,2]
[312948593,1706499046845,-264.47900442,0.00023,2]
[312948594,1706499046857,-1137.50336394,0.00023,2]
[312948597,1706499060318,519.0797294,0.00021603,2]
[312948598,1706499066766,1099.09101348,0.00022999,3]
[312948599,1706499066859,810.50400005,0.00023,3]
[312948600,1706499253537,164.69,0.00020193,2]
[312948601,1706500152115,-165.78079177,0.00021808,2]
[312948602,1706500152135,-2927.60230823,0.0002188,2]
[312948623,1706500231792,-155.0,0.00021667,2]
[312948624,1706500231802,-273.50808,0.00021668,2]
[312948625,1706500231813,-134.07192,0.00021668,2]
[312948626,1706500231823,-195.0,0.0002188,2]
[312948627,1706500231833,-357.78046588,0.0002188,2]
[312948628,1706500231845,-766.07929493,0.0002188,2]
[312948629,1706500231877,-1175.20314122,0.0002188,2]
[312948630,1706500231886,-2000.0,0.00021881,2]
[312948631,1706500231895,-1000.0,0.00021881,2]
[312948632,1706500231904,-182.5,0.00021892,2]
[312948633,1706500231913,-634.02104241,0.00021909,2]
[312948634,1706500231922,-150.0,0.00021917,2]
[312948635,1706500231931,-200.0,0.00021918,2]
[312948636,1706500231941,-800.0,0.00021918,2]
[312948637,1706500231951,-250.0,0.00021918,2]
[312948638,1706500231960,-218.56,0.0002208,2]
[312948639,1706500231969,-253.35,0.00022089,2]
[312948640,1706500231978,-1281.49,0.00022089,2]
[312948641,1706500231987,-169.11,0.00022169,2]
[312948642,1706500231997,-999.4697,0.00022197,2]
[312948643,1706500232006,-1702.4243,0.00022197,2]
[312948644,1706500232015,-2500.0,0.00022197,2]
[312948645,1706500232025,-954.20975195,0.00022197,2]
[312948646,1706500232034,-7513.04467895,0.00022287,2]
[312948647,1706500232044,-1005.38769874,0.00022296,2]
[312948648,1706500232056,-1091.907,0.00022297,2]
[312948649,1706500232065,-19087.5205666,0.00022297,2]
[312948650,1706500232076,-15159.33689045,0.00022297,2]
[312948651,1706500232089,-473.60372956,0.00022297,2]
[312948652,1706500232100,-102330.1831608,0.00022297,2]
[312948660,1706500237787,-7083.05345259,0.00022297,2]
[312948662,1706500237797,-500.0,0.00022297,2]
[312948664,1706500237807,-5067.04684741,0.00022297,2]
[312948666,1706500237820,-34871.49615259,0.00022297,2]
[312948668,1706500237830,-1625.25509751,0.00022297,2]
[312948670,1706500237842,-13116.8683577,0.00022297,2]
[312948681,1706500237951,-2039.91657473,0.00022297,2]
[312948682,1706500237966,-819.54426237,0.00022297,2]
[312948684,1706500237979,-521.05461648,0.00022297,2]
[312948686,1706500237991,-785.44914221,0.00022297,2]
[312948693,1706500238077,-279.39887565,0.00022297,2]
[312948695,1706500238091,-342.79972744,0.00022297,2]
[312948697,1706500238104,-774.47929514,0.00022297,2]
[312948765,1706500240334,-3911.40549445,0.00022297,2]
[312948766,1706500240346,-6606.55426422,0.00022297,2]
[312948767,1706500240392,-2744.97136735,0.00022297,2]
[312948768,1706500240405,-279.03800035,0.00022297,2]
[312948769,1706500240418,-796.00953877,0.00022297,2]
[312948770,1706500240434,-3610.795,0.00022297,2]
[312948771,1706500240504,-349.52264486,0.00022297,2]
[312948772,1706500240517,-385.41314855,0.00022297,2]
[312948775,1706500242858,-3077.6682786,0.00022297,2]
[312948776,1706500242871,-666.5382313,0.00022297,2]
[312948777,1706500242884,-381.87407514,0.00022297,2]
[312948778,1706500242984,-2821.00556573,0.00022297,2]
[312948779,1706500242997,-54064.43844145,0.00022297,2]
[312948780,1706500243007,-1000.0,0.00022297,2]
[312948781,1706500243018,-886.33,0.0002258,2]
[312948782,1706500243028,-499.99,0.0002258,2]
[312948783,1706500243037,-150.0,0.00022593,2]
[312948784,1706500243048,-18860.02888484,0.0002277,2]
[312948785,1706500243059,-420.7653,0.00022899,2]
[312948786,1706500243070,-242245.25357394,0.000229,2]
[312948800,1706500246514,-709.07093086,0.000229,2]
[312948801,1706500246572,-2085.2386487,0.000229,2]
[312948802,1706500246584,-308.87403957,0.000229,2]
[312948803,1706500246685,-4945.43753494,0.000229,2]
[312948804,1706500246697,-800.15571506,0.000229,2]
[312948805,1706500246710,-403.53386833,0.000229,2]
[312948806,1706500246744,-782.90285714,0.000229,2]
[312948807,1706500246755,-382.98981488,0.000229,2]
[312948808,1706500246767,-11296.00809621,0.000229,2]
[312948809,1706500246776,-3310.0001647,0.000229,2]
[312948810,1706500246787,-12064.00126961,0.000229,2]
[312948811,1706500246813,-1206.548663,0.00022899,2]
[312948812,1706500246822,-217.27255565,0.000229,2]
[312948813,1706500246833,-7418.54202721,0.000229,2]
[312948814,1706500246862,-466.70474391,0.000229,2]
[312948816,1706500251699,877.65758852,0.000229,3]
[312948817,1706500251788,750.76214465,0.000229,3]
[312948819,1706500327730,800.26966995,0.000229,3]
[312948820,1706500351925,1294.34437889,0.00021521,2]
[312948822,1706500402929,388.28383204,0.000229,3]
[312948830,1706500506485,424.19151675,0.000229,3]
[312948831,1706500524711,3197.13386433,0.00021307,2]
[312948840,1706501017925,192.38903108,0.00021572,2]
[312948849,1706501431948,-155.0,0.00021646,2]
[312948851,1706501431958,-95.19404164,0.00021647,2]
[312948855,1706501432057,-204.80595836,0.00021647,2]
[312948856,1706501432066,-150.0,0.00021647,2]
[312948857,1706501432075,-254.05606569,0.00021647,2]
[312948858,1706501432169,-3082.80241379,0.00021647,2]
[312948859,1706501432178,-12964.67395432,0.00021648,2]
[312948860,1706501432188,-1294.34437889,0.00021649,2]
[312948861,1706501432198,-339.65,0.00021698,2]
[312948862,1706501432207,-169.11,0.0002174,2]
[312948863,1706501432217,-1000.0,0.00021891,2]
[312948864,1706501432226,-200.0,0.00021918,2]
[312948865,1706501432235,-800.0,0.00021918,2]
[312948866,1706501432245,-800.0,0.00021918,2]
[312948867,1706501432254,-250.0,0.00021918,2]
[312948868,1706501432263,-168.92,0.00021946,2]
[312948869,1706501432272,-1294.34437889,0.00022071,2]
[312948870,1706501432281,-155.52976875,0.00022084,2]
[312948871,1706501432291,-1523.6409,0.00022097,2]
[312948872,1706501432300,-155.0,0.00022195,2]
[312948873,1706501432310,-421.67990345,0.00022195,2]
[312948874,1706501432319,-1005.38769873,0.00022196,2]
[312948875,1706501432328,-2695.36771586,0.00022196,2]
[312948876,1706501432337,-813.2365,0.00022197,2]
[312948877,1706501432346,-10725.15785407,0.00022197,2]
[312948878,1706501432357,-455.87090641,0.00022197,2]
[312948879,1706501432373,-2728.03785908,0.00022197,2]
[312948880,1706501432388,-590.47055933,0.00022197,2]
[312948881,1706501432400,-6236.57446842,0.00022197,2]
[312948888,1706501437974,-377.44548477,0.00022197,2]
[312948889,1706501438032,-1503.88522232,0.00022197,2]
[312948890,1706501438089,-10846.64460708,0.00022197,2]
[312948891,1706501438146,-2888.88628797,0.00022197,2]
[312948892,1706501438168,-808.75030777,0.00022197,2]
[312948893,1706501438180,-741.27723955,0.00022197,2]
[312948894,1706501438192,-420.8888349,0.00022197,2]
[312948895,1706501438204,-5846.96598803,0.00022197,2]
[312948896,1706501438257,-10011.59982199,0.00022197,2]
[312948897,1706501438269,-27966.57505831,0.00022197,2]
[312948898,1706501438279,-1294.34437889,0.0002244,2]
[312948899,1706501438288,-1294.34437889,0.0002252,2]
[312948900,1706501438297,-1005.38769873,0.00022747,2]
[312948901,1706501438307,-13151.5027,0.000228,2]
[312948902,1706501438316,-7838.03066323,0.000228,2]
[312948903,1706501438327,-1766.9567314,0.000228,2]
[312948904,1706501438338,-66578.21127617,0.000228,2]
[312948915,1706501440725,-353.65999998,0.000228,2]
[312948916,1706501441294,-14116.59770041,0.000228,2]
[312948917,1706501441404,-2422.37297042,0.000228,2]
[312948918,1706501441417,-3528.86499997,0.000228,2]
[312948919,1706501441460,-341.70387351,0.000228,2]
[312948920,1706501441471,-716.50286321,0.000228,2]
[312948926,1706501443006,-2337.0989217,0.000228,2]
[312948927,1706501443016,-232.37911008,0.00022898,2]
[312948928,1706501443025,-1891.25687369,0.000229,2]
[312948932,1706501443055,-88.38042996,0.000229,2]
[312948934,1706501443067,-601.317464,0.000229,2]
[312948938,1706501443118,-11445.41382604,0.000229,2]
[312948939,1706501443175,-2989.87464946,0.000229,2]
[312948947,1706501446125,-1412.63595467,0.000229,2]
[312948948,1706501446232,-3174.17119318,0.000229,2]
[312948949,1706501446342,-1858.16150761,0.000229,2]
[312948950,1706501446419,-423.47974713,0.000229,2]
[312948960,1706501860399,1479.9927382,0.0003,100]
[312948963,1706502632160,-169.28986,0.00021785,2]
[312948964,1706502632171,-3336.85847948,0.00021789,2]
[312948965,1706502632182,-276.72,0.0002179,2]
[312948966,1706502632193,-169.11,0.0002179,2]
[312948967,1706502632203,-912.8,0.00021832,2]
[312948968,1706502632214,-331.41,0.00021833,2]
[312948969,1706502632225,-714.12,0.00021871,2]
[312948970,1706502632235,-169.28986,0.00021885,2]
[312948971,1706502632245,-500.0,0.00021885,2]
[312948972,1706502632256,-178.52195081,0.00021886,2]
[312948973,1706502632266,-165.04,0.0002203,2]
[312948974,1706502632277,-1000.0,0.00022132,2]
[312948975,1706502632287,-211.54348153,0.00022297,2]
[312948976,1706502632333,-1082.80089736,0.00022297,2]
[312948977,1706502632344,-150.0,0.00022494,2]
[312948978,1706502632365,-1294.34437889,0.00022495,2]
[312948979,1706502632379,-359.43916021,0.000226,2]
[312948986,1706502638246,-640.56083979,0.000226,2]
[312948987,1706502638255,-150.0,0.00022607,2]
[312948988,1706502638265,-27897.18987305,0.000227,2]
[312948989,1706502638302,-419.10745008,0.000227,2]
[312948990,1706502638360,-2557.19997794,0.000227,2]